Workbook

Sheet 총괄표
C1: 사업수행능력 평가 총괄표
D3: 용역명 : 남양주 진건지구 군진지 이설 조사설계용역 | G3: 입찰공고일 : | H3: 2010-11-12
D4: 추정용역비 : | E4: 340548000 | F4: 원
C6: 구 분 | E6: 배 점 | F6: 자기평가 | G6: 확 인 | H6: 비 고
C7: 총 계 | E7: =E8+E26+E30+E33+E38+E41 -> 101 | F7: =F8+F26+F30+F33+F38+F41 -> 21.48 | G7: =G8+G26+G30+G33+G38+G41 -> 2
C8: 1. 참여기술자 | E8: =E9+E15+E19+E23 -> 50 | F8: =F9+F15+F19+F23 -> 1.17 | G8: =G9+G15+G19+G23 -> 1
C9: 가. 사업책임기술자 | E9: =SUM(E10:E14) -> 20 | F9: =SUM(F10:F14) -> 0 | G9: =SUM(G10:G14) -> 0
D10: 등급 | E10: ='1(1)참여기술자'!D7 -> 5 | F10: ='1(1)참여기술자'!E7 -> 0 | G10: ='1(1)참여기술자'!F7 -> 0
D11: 경력 | E11: ='1(1)참여기술자'!D8 -> 6 | F11: ='1(1)참여기술자'!E8 -> 0 | G11: ='1(1)참여기술자'!F8 -> 0
D12: 실적 | E12: ='1(1)참여기술자'!D9 -> 7 | F12: ='1(1)참여기술자'!E9 -> 0 | G12: ='1(1)참여기술자'!F9 -> 0
D13: 기술능력 | E13: ='1(1)참여기술자'!D10 -> 1 | F13: ='1(1)참여기술자'!E10 -> - | G13: ='1(1)참여기술자'!F10 -> 0
D14: 업무관리능력 | E14: ='1(1)참여기술자'!D11 -> 1 | F14: ='1(1)참여기술자'!E11 -> - | G14: ='1(1)참여기술자'!F11 -> 0
C15: 나. 분야별 책임기술자 | E15: =SUM(E16:E18) -> 20 | F15: =SUM(F16:F18) -> 0 | G15: =SUM(G16:G18) -> 0
D16: 자격및 등급 | E16: ='1(1)참여기술자'!D12 -> 5 | F16: ='1(1)참여기술자'!E12 -> 0 | G16: ='1(1)참여기술자'!F12 -> 0
D17: 경력 | E17: ='1(1)참여기술자'!D13 -> 7 | F17: ='1(1)참여기술자'!E13 -> 0 | G17: ='1(1)참여기술자'!F13 -> 0
D18: 실적 | E18: ='1(1)참여기술자'!D14 -> 8 | F18: ='1(1)참여기술자'!E14 -> 0 | G18: ='1(1)참여기술자'!F14 -> 0
C19: 다. 분야별 참여기술자 | E19: =SUM(E20:E22) -> 8 | F19: =SUM(F20:F22) -> 0 | G19: =SUM(G20:G22) -> 0
D20: 자격및 등급 | E20: ='1(1)참여기술자'!D27 -> 2 | F20: ='1(1)참여기술자'!E27 -> 0 | G20: ='1(1)참여기술자'!F27 -> 0
D21: 경력 | E21: ='1(1)참여기술자'!D28 -> 3 | F21: ='1(1)참여기술자'!E28 -> 0 | G21: ='1(1)참여기술자'!F28 -> 0
D22: 실적 | E22: ='1(1)참여기술자'!D29 -> 3 | F22: ='1(1)참여기술자'!E29 -> 0 | G22: ='1(1)참여기술자'!F29 -> 0
C23: 라. 참여기술자 교육훈련, 전차용역실적 | E23: =SUM(E24:E25) -> 2 | F23: =SUM(F24:F25) -> 1.17 | G23: =SUM(G24:G25) -> 1
D24: 교육훈련 | E24: 1 | F24: ='1(1)참여기술자'!M6 -> 0.17 | G24: ='1(1)참여기술자'!N6 -> 0
D25: 전차용역 수행실적 | E25: 1 | F25: 1 | G25: 1 | H25: 만점처리
C26: 2. 유사용역 수행실적 | E26: =SUM(E27:E29) -> 15 | F26: =SUM(F27:F29) -> 1 | G26: =SUM(G27:G29) -> 1
C27: 가. 실적 | E27: ='2.유사용역'!G8 -> 7 | F27: ='2.유사용역'!H8 -> 0 | G27: ='2.유사용역'!I8 -> 0
C28: 나. 금액 | E28: ='2.유사용역'!J8 -> 7 | F28: ='2.유사용역'!K8 -> 0 | G28: ='2.유사용역'!L8 -> 0
C29: 다. 전차용역 수행실적 | E29: 1 | F29: 1 | G29: 1 | H29: 만점처리
C30: 3. 신용도 | E30: =SUM(E31:E32) -> 10 | F30: =SUM(F31:F32) -> 8.4 | G30: =SUM(G31:G32) -> 0
C31: 가. 입찰제한,업무정지,부실벌점 | E31: ='3.신용도'!G8 -> 7 | F31: ='3.신용도'!H8 -> 5.6 | G31: ='3.신용도'!I8 -> 0
C32: 나. 재정상태 건실도 | E32: 3 | F32: ='3.신용도'!K8 -> 2.8 | G32: ='3.신용도'!L8 -> 0
C33: 4. 기술개발 및 투자실적 | E33: =SUM(E34:E37) -> 15 | F33: =SUM(F34:F37) -> 4.91 | G33: =SUM(G34:G37) -> 0
C34: 가. 개발실적 | E34: ='4(1)기술개발및투자실적'!G8 -> 2 | F34: ='4(1)기술개발및투자실적'!H8 -> 1.32 | G34: ='4(1)기술개발및투자실적'!I8 -> 0
C35: 나. 투자실적 | E35: 9 | F35: ='4(1)기술개발및투자실적'!K68 -> 0 | G35: ='4(1)기술개발및투자실적'!L68 -> 0
C36: 다. 활용실적 | E36: 3 | F36: ='4(2)활용실적'!G8 -> 1.49 | G36: ='4(2)활용실적'!H8 -> 0
C37: 라.R&D 사업참여실적 | E37: ='4(3)R&D참여실적'!G8 -> 1 | F37: ='4(3)R&D참여실적'!H8 -> 2.1 | G37: ='4(3)R&D참여실적'!I8 -> 0
C38: 5. 업무중첩도 | E38: =SUM(E39:E40) -> 10 | F38: =SUM(F39:F40) -> 6 | G38: =SUM(G39:G40) -> 0
C39: 가. 사업책임기술자 | E39: ='5.업무중첩도'!E6 -> 6 | F39: ='5.업무중첩도'!F6 -> 6 | G39: ='5.업무중첩도'!G6 -> 0
C40: 나. 분야별 책임기술자 | E40: ='5.업무중첩도'!E11 -> 4 | F40: ='5.업무중첩도'!F11 -> 0 | G40: ='5.업무중첩도'!G11 -> 0
C41: (가점) 해외설계 수행실적 | E41: 1 | F41: =SUM(F42:F43) -> 0 | G41: =SUM(G42:G43) -> 0

Sheet 참여업체현황
A1: 참여업체 현황
A3: 구 분 | B3: 상 호 | C3: 지분율 | D3: 환산지분율 | E3: 참여분야 | F3: 보유면허
F4: 건축사 | G4: 토질 및기초 | H4: 토목 구조 | I4: 도로 및공항 | J4: 상하 수도 | K4: 건축 구조 | L4: 건축 기계 설비 | M4: 도시 계획 | N4: 조경 | O4: 측량 | P4: 환경 | Q4: 전기 | R4: 통신 통신 | S4: 소방
A5: 공동 | B5: A건축사 | C5: 0.4 | D5: =ROUND(C5/(C5+C7+C9),4) -> 0.5 | E5: 참여분야 | F5: 0 | G5: 0 | H5: 0 | I5: 0 | J5: 0 | K5: 0 | L5: 0 | M5: 0 | N5: 0 | O5: 0 | P5: 0
E6: 보유면허 | F6: 0 | G6: 0 | H6: 0 | I6: 0 | J6: 0 | K6: 0 | L6: 0 | M6: 0 | N6: 0 | O6: 0 | P6: 0
A7: 공동 | B7: B건축사 | C7: 0.26 | D7: =ROUND(C7/(C5+C7+C9),4) -> 0.325 | E7: 참여분야 | F7: 0 | G7: 0 | H7: 0 | I7: 0 | J7: 0 | K7: 0 | L7: 0 | M7: 0 | N7: 0 | O7: 0 | P7: 0
E8: 보유면허 | F8: 0 | G8: 0 | H8: 0 | I8: 0 | J8: 0 | K8: 0 | L8: 0 | M8: 0 | N8: 0 | O8: 0 | P8: 0
A9: 공동 | B9: C건축사 | C9: 0.14 | D9: =ROUND(C9/(C5+C7+C9),4) -> 0.175 | E9: 참여분야 | F9: 0 | G9: 0 | H9: 0 | I9: 0 | J9: 0 | K9: 0 | L9: 0 | M9: 0 | N9: 0 | O9: 0 | P9: 0
E10: 보유면허 | F10: 0 | G10: 0 | H10: 0 | I10: 0 | J10: 0 | K10: 0 | L10: 0 | M10: 0 | N10: 0 | O10: 0 | P10: 0
A11: 분담 | B11: D전기,통신 | C11: 0.16 | D11: - | E11: 참여분야 | Q11: 0 | R11: 0
E12: 보유면허 | Q12: 0 | R12: 0
A13: 분담 | B13: E소방 | C13: 0.04 | D13: - | E13: 참여분야 | S13: 0
E14: 보유면허 | S14: 0

Sheet 1(1)참여기술자
A2: 1. 참여기술자
A4: 구 분 | D4: 배 점 | E4: 자기 평가 | F4: 확 인 | G4: 성 명 | H4: 자 격 | I4: 면허번호 | J4: 경 력(년) | K4: 실적건수 | L4: 교 육 실 적
L5: 기 간 | M5: 배 점
A6: 총 계 | D6: - | E6: - | F6: - | G6: - | H6: - | I6: - | J6: - | K6: - | L6: - | M6: =ROUND((M7+M15+M18+M21+M24+M30+M33+M36+M39)/9,2) -> 0.17
A7: 사업책임기술자 | C7: 등급 | D7: 5 | H7: 건축사 | K7: ='1(2)참여기술자실적'!N6 -> 0
C8: 경력 | D8: 6
C9: 실적 | D9: 7
C10: 기술능력 | D10: 1 | E10: -
C11: 업무관리 능력 | D11: 1 | E11: -
A12: 분야별 책임 기술자 | B12: 총계 | C12: 등급 | D12: =ROUND(D15*$C$45+D18*$D$45+D21*$E$45+D24*$F$45,1) -> 5 | E12: =ROUND(E15*$C$45+E18*$D$45+E21*$E$45+E24*$F$45,2) -> 0 | F12: 0 | G12: - | H12: - | I12: - | J12: - | K12: - | L12: - | M12: -
C13: 경력 | D13: =ROUND(D16*$C$45+D19*$D$45+D22*$E$45+D25*$F$45,1) -> 7 | E13: 0 | F13: 0
C14: 실적 | D14: =ROUND(D17*$C$45+D20*$D$45+D23*$E$45+D26*$F$45,1) -> 8 | E14: 0 | F14: 0
B15: 건축설계 | C15: 등급 | D15: 5 | G15: (예시1)홍길동 | H15: 건축사 | I15: 00000000000 | K15: ='1(2)참여기술자실적'!N14 -> 0
C16: 경력 | D16: 7
C17: 실적 | D17: 8
B18: 토질 및 기초 | C18: 등급 | D18: 5 | G18: (예시2)000 | H18: 건축기술사 | I18: 0000000000 | K18: ='1(2)참여기술자실적'!N21 -> 0
C19: 경력 | D19: 7
C20: 실적 | D20: 8
B21: 전기 | C21: 등급 | D21: 5 | K21: ='1(2)참여기술자실적'!N28 -> 0
C22: 경력 | D22: 7
C23: 실적 | D23: 8
B24: 기계 | C24: 등급 | D24: 5 | K24: ='1(2)참여기술자실적'!N35 -> 0
C25: 경력 | D25: 7
C26: 실적 | D26: 8
A27: 분야별 참여 기술자 | B27: 총계 | C27: 등급 | D27: =D30*$C$48+D33*$D$48+D36*$E$48+D39*$F$48 -> 2 | E27: 0 | F27: 0 | G27: - | H27: - | I27: - | J27: - | K27: - | L27: - | M27: -
C28: 경력 | D28: 3 | E28: 0 | F28: 0
C29: 실적 | D29: 3 | E29: 0 | F29: 0
B30: 건축설계 | C30: 등급 | D30: 2 | K30: ='1(2)참여기술자실적'!N42 -> 0 | L30: 2주 | M30: 1
C31: 경력 | D31: 3
C32: 실적 | D32: 3
B33: 도로 및 공항 | C33: 등급 | D33: 2 | K33: ='1(2)참여기술자실적'!N49 -> 0 | L33: 1주 | M33: 0.5
C34: 경력 | D34: 3
C35: 실적 | D35: 3
B36: 통신 | C36: 등급 | D36: 2 | K36: ='1(2)참여기술자실적'!N56 -> 0
C37: 경력 | D37: 3
C38: 실적 | D38: 3
B39: 소방 | C39: 등급 | D39: 2 | K39: ='1(2)참여기술자실적'!N63 -> 0
C40: 경력 | D40: 3
C41: 실적 | D41: 3
A43: * 분야별 가중치적용표
A44: 책임기술자 | C44: 건축설계 | D44: 토질 및기초 | E44: 전기 | F44: 기계
A45: 가중치 | C45: 0.7 | D45: 0.1 | E45: 0.1 | F45: 0.1
A47: 참여기술자 | C47: 건축설계 | D47: 도로 및 공항 | E47: 통신 | F47: 소방
A48: 가중치 | C48: 0.7 | D48: 0.1 | E48: 0.1 | F48: 0.1

Sheet 1(2)참여기술자실적
A2: 1-2. 참여기술자(실적)
A4: 구 분 | C4: 성 명 | D4: 용역명 | E4: 발주처 | F4: 소속사 | G4: 담당업무 | H4: 참여기간 | K4: 용역금액 (원) | L4: 연면적 (m2) | M4: 실적계수 | N4: 실적건수
H5: 참여시작일 | I5: 종료일 | J5: 기간(일)
A6: 사업책임기술자 | C6: - | D6: - | E6: - | F6: - | G6: - | H6: - | I6: - | J6: - | K6: - | L6: - | M6: - | N6: =SUM(N7:N13) -> 0
H7: 2009-10-11 | I7: 2010-10-12 | J7: =I7-H7+1 -> 367 | M7: =ROUNDDOWN(L7/2000,4) -> 0
J8: =I8-H8+1 -> 1 | M8: 0
J9: 1 | M9: 0
J10: 1 | M10: 0
J11: 1 | M11: 0
J12: 1 | M12: 0
J13: 1 | M13: 0
A14: 분야별 책임 기술자 | B14: 합계 | D14: - | E14: - | F14: - | G14: - | H14: - | I14: - | J14: - | K14: - | L14: - | M14: - | N14: =SUM(N15:N20) -> 0
B15: 건축설계 | J15: =I15-H15+1 -> 1 | M15: =ROUNDDOWN(L15/2000,4) -> 0
J16: 1 | M16: 0
J17: 1 | M17: 0
J18: 1 | M18: 0
J19: 1 | M19: 0
J20: 1 | M20: 0
B21: 합계 | D21: - | E21: - | F21: - | G21: - | H21: - | I21: - | J21: - | K21: - | L21: - | M21: - | N21: =SUM(N22:N27) -> 0
B22: 토질및기초 | J22: =I22-H22+1 -> 1 | M22: =ROUNDDOWN(K22/총괄표!$E$4,4) -> 0
J23: 1 | M23: =ROUNDDOWN(K23/총괄표!$E$4,4) -> 0
J24: 1 | M24: =ROUNDDOWN(K24/총괄표!$E$4,4) -> 0
J25: 1 | M25: =ROUNDDOWN(K25/총괄표!$E$4,4) -> 0
J26: 1 | M26: =ROUNDDOWN(K26/총괄표!$E$4,4) -> 0
J27: 1 | M27: =ROUNDDOWN(K27/총괄표!$E$4,4) -> 0
B28: 합계 | D28: - | E28: - | F28: - | G28: - | H28: - | I28: - | J28: - | K28: - | L28: - | M28: - | N28: =SUM(N29:N34) -> 0
B29: 전기 | J29: =I29-H29+1 -> 1 | M29: =ROUNDDOWN(L29/2000,4) -> 0
J30: 1 | M30: 0
J31: 1 | M31: 0
J32: 1 | M32: 0
J33: 1 | M33: 0
J34: 1 | M34: 0
B35: 합계 | D35: - | E35: - | F35: - | G35: - | H35: - | I35: - | J35: - | K35: - | L35: - | M35: - | N35: =SUM(N36:N41) -> 0
B36: 기계 | J36: =I36-H36+1 -> 1 | M36: =ROUNDDOWN(L36/2000,4) -> 0
J37: 1 | M37: 0
J38: 1 | M38: 0
J39: 1 | M39: 0
J40: 1 | M40: 0
J41: 1 | M41: 0
A42: 분야별 참여 기술자 | B42: 합계 | D42: - | E42: - | F42: - | G42: - | H42: - | I42: - | J42: - | K42: - | L42: - | M42: - | N42: =SUM(N43:N48) -> 0
B43: 건축설계 | J43: =I43-H43+1 -> 1 | M43: =ROUNDDOWN(L43/2000,4) -> 0
J44: 1 | M44: 0
J45: 1 | M45: 0
J46: 1 | M46: 0
J47: 1 | M47: 0
J48: 1 | M48: 0
B49: 합계 | D49: - | E49: - | F49: - | G49: - | H49: - | I49: - | J49: - | K49: - | L49: - | M49: - | N49: =SUM(N50:N55) -> 0
B50: 도로 및 공항 | J50: =I50-H50+1 -> 1 | M50: =ROUNDDOWN(K50/총괄표!$E$4,4) -> 0
J51: 1 | M51: =ROUNDDOWN(K51/총괄표!$E$4,4) -> 0
J52: 1 | M52: =ROUNDDOWN(K52/총괄표!$E$4,4) -> 0
J53: 1 | M53: =ROUNDDOWN(K53/총괄표!$E$4,4) -> 0
J54: 1 | M54: =ROUNDDOWN(K54/총괄표!$E$4,4) -> 0
J55: 1 | M55: =ROUNDDOWN(K55/총괄표!$E$4,4) -> 0
B56: 합계 | D56: - | E56: - | F56: - | G56: - | H56: - | I56: - | J56: - | K56: - | L56: - | M56: - | N56: =SUM(N57:N62) -> 0
B57: 통신 | J57: =I57-H57+1 -> 1 | M57: =ROUNDDOWN(L57/2000,4) -> 0
J58: 1 | M58: 0
J59: 1 | M59: 0
J60: 1 | M60: 0
J61: 1 | M61: 0
J62: 1 | M62: 0
B63: 합계 | D63: - | E63: - | F63: - | G63: - | H63: - | I63: - | J63: - | K63: - | L63: - | M63: - | N63: =SUM(N64:N69) -> 0
B64: 소방 | J64: =I64-H64+1 -> 1 | M64: =ROUNDDOWN(L64/2000,4) -> 0
J65: 1 | M65: 0
J66: 1 | M66: 0
J67: 1 | M67: 0
J68: 1 | M68: 0
J69: 1 | M69: 0

Sheet 2.유사용역
A2: 2. 유사용역수행실적
A4: 유사용역 총괄표
A6: 유사용역수행실적 | C6: 환산지분율 | D6: 실적건수 | E6: 금액 | G6: 실적점수 | J6: 금액점수 | M6: 비고
E7: 합계금액 | F7: 금액계수 | G7: 배점 | H7: 자기평가 | I7: 확인 | J7: 배점 | K7: 자기평가 | L7: 확인
A8: 총 계 | C8: - | D8: =ROUND(D9*C9+D10*C10+D11*C11,2) -> 3.7 | E8: =E9*C9+E10*C10+E11*C11 -> 2295900000 | F8: =E8/총괄표!E4 -> 6.741780894 | G8: 7 | J8: =J9*$C9+$C10*J10+$C11*J11 -> 7
A9: =A13 -> 대 표 사 | B9: =B13 -> A건축사 | C9: =참여업체현황!$D$5 -> 0.5 | D9: =O16 -> 3.7 | E9: =$K$16 -> 2760000000 | F9: - | G9: - | H9: - | I9: - | J9: 7 | K9: - | L9: -
A10: =A34 -> 공동도급사 | B10: =B34 -> B건축사 | C10: =참여업체현황!$D$7 -> 0.325 | D10: =O37 -> 3.7 | E10: =K37 -> 1332000000 | F10: - | G10: - | H10: - | I10: - | J10: 7 | K10: - | L10: -
A11: =A55 -> 공동도급사 | B11: =B55 -> C건축사 | C11: =참여업체현황!$D$9 -> 0.175 | D11: =O58 -> 3.7 | E11: =K58 -> 2760000000 | F11: - | G11: - | H11: - | I11: - | J11: 7 | K11: - | L11: -
A13: 대 표 사 | B13: =참여업체현황!B5 -> A건축사 | D13: 환산지분율 | G13: =참여업체현황!$D$5 -> 0.5
A15: 구분 | B15: 용역명 | C15: 발주청 | D15: 용역기간 | F15: 용역/ 일괄입찰 | G15: 준공금액 (원) | H15: 지분율 | I15: 설계요율 | J15: 설계보상 | K15: 실적금액 | L15: 연면적 (m2) | M15: 실적연면적 (m2) | N15: 연면적 계수 | O15: 실적 건수
A16: 총 계 | C16: - | D16: - | F16: - | G16: - | H16: - | I16: - | J16: - | K16: =SUM(K17:K31) -> 2760000000 | L16: - | M16: - | N16: - | O16: =SUM(O17:O31) -> 3.7
A17: 기본설계 | B17: 00군부대 이설공사 조사설계 | C17: 00공사 | D17: 2009/03~2010/07 | F17: 설계용역 | G17: 1000000000 | H17: 0.5 | I17: - | J17: - | K17: =G17*H17 -> 500000000 | L17: 3200 | M17: =L17*H17 -> 1600 | N17: =ROUNDDOWN(M17/2000,2) -> 0.8 | O17: 0.5
A18: 기본 및 실시설계 | B18: 00 군부대 건설 일괄입찰 | C18: 00공사 | D18: 2009/03~2010/07 | F18: 일괄입찰 | G18: 35000000000 | H18: - | I18: =3.5%*80% -> 0.028 | J18: - | K18: =G18*I18 -> 980000000 | L18: 7000 | M18: =L18 -> 7000 | N18: =ROUNDDOWN(M18/2000,2) -> 3.5 | O18: 2
C19: 00공사 | D19: 2009/03~2010/07 | F19: 설계보상 | G19: 50000000000 | H19: - | I19: 0.032 | J19: 0.8 | K19: =G19*I19*J19 -> 1280000000 | L19: 4000 | M19: =L19 -> 4000 | N19: =ROUNDDOWN(M19*J19/2000,2) -> 1.6 | O19: =1.5*J19 -> 1.2
A34: 공동도급사 | B34: =참여업체현황!B7 -> B건축사 | D34: 환산지분율 | G34: =참여업체현황!$D$7 -> 0.325
A36: 구분 | B36: 용역명 | C36: 발주청 | D36: 용역기간 | F36: 용역/ 일괄입찰 | G36: 준공금액 (원) | H36: 지분율 | I36: 설계요율 | J36: 설계보상 | K36: 실적금액 | L36: 연면적 (m2) | M36: 실적연면적 (m2) | N36: 연면적 계수 | O36: 실적 건수
A37: 총 계 | C37: - | D37: - | F37: - | G37: - | H37: - | I37: - | J37: - | K37: =SUM(K38:K52) -> 1332000000 | L37: - | M37: - | N37: - | O37: =SUM(O38:O52) -> 3.7
A38: 기본설계 | B38: 00군부대 이설공사 조사설계 | C38: 00공사 | D38: 2009/03~2010/07 | F38: 설계용역 | G38: 800000000 | H38: 0.5 | I38: - | J38: - | K38: =G38*H38 -> 400000000 | L38: 3200 | M38: =L38*H38 -> 1600 | N38: =ROUNDDOWN(M38/2000,2) -> 0.8 | O38: 0.5
A39: 기본 및 실시설계 | B39: 00 군부대 건설 일괄입찰 | C39: 00공사 | D39: 2009/03~2010/07 | F39: 일괄입찰 | G39: 15000000000 | H39: - | I39: =3.5%*80% -> 0.028 | J39: - | K39: =G39*I39 -> 420000000 | L39: 7000 | M39: =L39 -> 7000 | N39: =ROUNDDOWN(M39/2000,2) -> 3.5 | O39: 2
C40: 00공사 | D40: 2009/03~2010/07 | F40: 설계보상 | G40: 20000000000 | H40: - | I40: 0.032 | J40: 0.8 | K40: =G40*I40*J40 -> 512000000 | L40: 4000 | M40: =L40 -> 4000 | N40: =ROUNDDOWN(M40*J40/2000,2) -> 1.6 | O40: =1.5*J40 -> 1.2
A55: 공동도급사 | B55: =참여업체현황!B9 -> C건축사 | D55: 환산지분율 | G55: =참여업체현황!D9 -> 0.175
A57: 구분 | B57: 용역명 | C57: 발주청 | D57: 용역기간 | F57: 용역/ 일괄입찰 | G57: 준공금액 (원) | H57: 지분율 | I57: 설계요율 | J57: 설계보상 | K57: 실적금액 | L57: 연면적 (m2) | M57: 실적연면적 (m2) | N57: 연면적 계수 | O57: 실적 건수
A58: 총 계 | C58: - | D58: - | F58: - | G58: - | H58: - | I58: - | J58: - | K58: =SUM(K59:K73) -> 2760000000 | L58: - | M58: - | N58: - | O58: =SUM(O59:O73) -> 3.7
A59: 기본설계 | B59: 00군부대 이설공사 조사설계 | C59: 00공사 | D59: 2009/03~2010/07 | F59: 설계용역 | G59: 1000000000 | H59: 0.5 | I59: - | J59: - | K59: =G59*H59 -> 500000000 | L59: 3200 | M59: =L59*H59 -> 1600 | N59: =ROUNDDOWN(M59/2000,2) -> 0.8 | O59: 0.5
A60: 기본 및 실시설계 | B60: 00 군부대 건설 일괄입찰 | C60: 00공사 | D60: 2009/03~2010/07 | F60: 일괄입찰 | G60: 35000000000 | H60: - | I60: =3.5%*80% -> 0.028 | J60: - | K60: =G60*I60 -> 980000000 | L60: 7000 | M60: =L60 -> 7000 | N60: =ROUNDDOWN(M60/2000,2) -> 3.5 | O60: 2
C61: 00공사 | D61: 2009/03~2010/07 | F61: 설계보상 | G61: 50000000000 | H61: - | I61: 0.032 | J61: 0.8 | K61: =G61*I61*J61 -> 1280000000 | L61: 4000 | M61: =L61 -> 4000 | N61: =ROUNDDOWN(M61*J61/2000,2) -> 1.6 | O61: =1.5*J61 -> 1.2

Sheet 3.신용도
A2: 3. 신용도
A4: 신용도 총괄표
A6: 신용도 | C6: 환산지분율 | D6: 입찰참가 제한기간 | E6: 기술자격 및 업무정지기간 | F6: 참여업체 및 참여기술자 누계부실벌점 | G6: 입찰참가제한, 업무정지, 부실벌점등 | J6: 신용평가등급
G7: 배점 | H7: 자기평가 | I7: 확인 | J7: 신용평가등급 | K7: 점수 | L7: 확인
A8: 총 계 | C8: - | D8: =ROUNDUP(($C9*D9+$C10*D10+$C11*D11)/30,0) -> 6 | E8: =ROUNDUP(I50/30,0) -> 1 | F8: =ROUND(($C9*F9+$C10*F10+$C11*F11)+K50,2) -> 0 | G8: 7 | H8: =G8-0.2*(D8+E8)-F8 -> 5.6 | J8: - | K8: =ROUND(K9*C9+K10*C10+K11*C11,2) -> 2.8 | L8: =ROUND($C9*L9+$C10*L10+$C11*L11,2) -> 0
A9: =A14 -> 대 표 사 | B9: =B14 -> A건축사 | C9: =참여업체현황!$D$5 -> 0.5 | D9: =I17 -> 166 | E9: - | F9: =K17 -> 0 | G9: - | H9: - | I9: - | J9: 회사채A- | K9: 3
A10: =A25 -> 공동도급사 | B10: =B25 -> B건축사 | C10: =참여업체현황!$D$7 -> 0.325 | D10: =I28 -> 166 | E10: - | F10: =K28 -> 0 | G10: - | H10: - | I10: - | J10: 기업어음A3+ | K10: 2.7
A11: =A36 -> 공동도급사 | B11: =B36 -> C건축사 | C11: =참여업체현황!$D$9 -> 0.175 | D11: =I39 -> 166 | E11: - | F11: =K39 -> 0 | G11: - | H11: - | I11: - | J11: 회사채B- | K11: 2.4
A14: 대 표 사 | B14: =참여업체현황!B5 -> A건축사 | D14: 환산지분율 | G14: =참여업체현황!$D$5 -> 0.5
A16: 구분 | B16: 처분명칭 | C16: 처분부과기관 | D16: 처분사유 | G16: 입찰참가 제한기간 | I16: 기간 (일) | J16: 누계평균 부실벌점 | K16: 부실점수 | L16: 비고
A17: 총 계 | C17: - | D17: - | G17: 시작일 | H17: 종료일 | I17: =SUM(I18:I22) -> 166 | L17: -
A18: 입찰참가 제한처분현황 | B18: 00공사 건 000참가제한 | C18: 00공사조사설계 | D18: 000 건 | G18: 2009-12-10 | H18: 2010-05-20 | I18: =H18-G18+1 -> 162 | J18: -
I19: =H19-G19+1 -> 1 | J19: -
I20: =H20-G20+1 -> 1 | J20: -
I21: =H21-G21+1 -> 1 | J21: -
I22: =H22-G22+1 -> 1 | J22: -
A25: 공동도급사 | B25: =참여업체현황!B7 -> B건축사 | D25: 환산지분율 | G25: =참여업체현황!$D$7 -> 0.325
A27: 구분 | B27: 처분명칭 | C27: 처분부과기관 | D27: 처분사유 | G27: 입찰참가 제한기간 | I27: 기간 (개월) | J27: 누계평균 부실벌점 | K27: 부실점수 | L27: 비고
A28: 총 계 | C28: - | D28: - | G28: 시작일 | H28: 종료일 | I28: =SUM(I29:I33) -> 166 | L28: -
A29: 입찰참가 제한처분현황 | B29: 00공사 건 000참가제한 | C29: 00공사조사설계 | D29: 000 건 | G29: 2009-12-10 | H29: 2010-05-20 | I29: =H29-G29+1 -> 162 | J29: -
I30: =H30-G30+1 -> 1 | J30: -
I31: =H31-G31+1 -> 1 | J31: -
I32: =H32-G32+1 -> 1 | J32: -
I33: =H33-G33+1 -> 1 | J33: -
A36: 공동도급사 | B36: =참여업체현황!B9 -> C건축사 | D36: 환산지분율 | G36: =참여업체현황!D9 -> 0.175
A38: 구분 | B38: 처분명칭 | C38: 처분부과기관 | D38: 처분사유 | G38: 입찰참가 제한기간 | I38: 기간 (개월) | J38: 누계평균 부실벌점 | K38: 부실점수 | L38: 비고
A39: 총 계 | C39: - | D39: - | G39: 시작일 | H39: 종료일 | I39: =SUM(I40:I44) -> 166 | L39: -
A40: 입찰참가 제한처분현황 | B40: 00공사 건 000참가제한 | C40: 00공사조사설계 | D40: 000 건 | G40: 2009-12-10 | H40: 2010-05-20 | I40: =H40-G40+1 -> 162 | J40: -
I41: =H41-G41+1 -> 1 | J41: -
I42: =H42-G42+1 -> 1 | J42: -
I43: =H43-G43+1 -> 1 | J43: -
I44: =H44-G44+1 -> 1 | J44: -
A47: 참여기술자 기술자격 및 업무정지, 부실벌점
A49: 구분 | B49: - | C49: 처분부과기관 | D49: 처분사유 | G49: 기술자격 및 업무정지기간 | I49: 기간 (일) | J49: 누계평균 부실벌점 | K49: 부실점수 | L49: 비고
A50: 총 계 | C50: - | D50: - | G50: 시작일 | H50: 종료일 | I50: =SUM(I51:I59) -> 9 | J50: - | K50: =SUM(K51:K59) -> 0 | L50: -
A51: 참여기술자 기술자격 및 업무정지 처분현황 | B51: 사업책임기술자 | C51: 홍길동 | I51: =H51-G51+1 -> 1
B52: 분야별책임기술자 | I52: =H52-G52+1 -> 1
B53: 분야별책임기술자 | I53: 1
B54: 분야별책임기술자 | I54: 1
B55: 분야별책임기술자 | I55: 1
B56: 분야별참여기술자 | I56: 1
B57: 분야별참여기술자 | I57: 1
B58: 분야별참여기술자 | I58: 1
B59: 분야별참여기술자 | I59: 1

Sheet 4(1)기술개발및투자실적
A2: 4-1. 기술개발
A4: 기술개발 총계
A6: 신용도 | C6: 환산지분율 | D6: 신기술 | E6: 특허 | F6: 실용신안 | G6: 실적점수
G7: 배점 | H7: 자기평가 | I7: 확인
A8: 총 계 | C8: - | D8: =$C9*D9+$C10*D10+$C11*D11 -> 1 | E8: =$C9*E9+$C10*E10+$C11*E11 -> 0.324 | F8: =$C9*F9+$C10*F10+$C11*F11 -> 0 | G8: =$C9*G9+$C10*G10+$C11*G11 -> 2 | H8: =ROUND($C9*H9+$C10*H10+$C11*H11,2) -> 1.32 | I8: =ROUND($C9*I9+$C10*I10+$C11*I11,2) -> 0
A9: =A14 -> 대 표 사 | B9: =B14 -> A건축사 | C9: =참여업체현황!$D$5 -> 0.5 | D9: =SUM(I19:I21) -> 1 | E9: =SUM(I22:I24) -> 0.48 | F9: =SUM(I25:I27) -> 0 | G9: =H18 -> 2 | H9: =I18 -> 1.48 | I9: =J18 -> 0
A10: =A30 -> 공동도급사 | B10: =B30 -> B건축사 | C10: =참여업체현황!$D$7 -> 0.325 | D10: =SUM(I35:I37) -> 1 | E10: =SUM(I38:I40) -> 0 | F10: =SUM(I41:I43) -> 0 | G10: =H34 -> 2 | H10: =I34 -> 1 | I10: =J34 -> 0
A11: =A46 -> 공동도급사 | B11: =B46 -> C건축사 | C11: =참여업체현황!$D$9 -> 0.175 | D11: =SUM(I51:I53) -> 1 | E11: =SUM(I54:I56) -> 0.48 | F11: =SUM(I57:I59) -> 0 | G11: =H50 -> 2 | H11: =I50 -> 1.48 | I11: =J50 -> 0
A14: 대 표 사 | B14: =참여업체현황!B5 -> A건축사 | D14: 환산지분율 | F14: =참여업체현황!$D$5 -> 0.5
A16: 구분 | B16: 제목 | C16: 등록청 | D16: 지정번호 | E16: 출원일 | F16: 경과기간 (년) | G16: 개발실적
G17: 가중치 | H17: 배점 | I17: 자기평가 | J17: 확인
A18: 총 계 | C18: - | D18: - | E18: - | F18: - | G18: - | H18: 2 | I18: =ROUND(SUM(I19:I27),2) -> 1.48 | J18: =SUM(J19:J27) -> 0
A19: 건설신기술 | B19: 00신기술 | C19: 00청 | D19: 00-000-000 | E19: 2009-02-03 | F19: =ROUNDDOWN((총괄표!$H$3-E19+1)/365,0) -> 1 | G19: 1 | H19: 1 | I19: =ROUND(G19*H19,2) -> 1 | J19: -
H20: 1 | I20: =ROUND(G20*H20,2) -> 0 | J20: -
H21: 1 | I21: 0 | J21: -
A22: 건설기술에 관한 특허 | C22: 00청 | D22: 00-000-000 | E22: 2004-02-01 | F22: =ROUNDDOWN((총괄표!$H$3-E22+1)/365,0) -> 6 | G22: 0.8 | H22: 0.6 | I22: 0.48 | J22: -
H23: 0.6 | I23: 0 | J23: -
H24: 0.6 | I24: 0 | J24: -
A25: 건설기술에 관한 실용신안 | H25: 0.3 | I25: 0 | J25: -
H26: 0.3 | I26: 0 | J26: -
H27: 0.3 | I27: 0 | J27: -
A30: 공동도급사 | B30: =참여업체현황!B7 -> B건축사 | D30: 환산지분율 | F30: =참여업체현황!$D$7 -> 0.325
A32: 구분 | B32: 제목 | C32: 등록청 | D32: 지정번호 | E32: 출원일 | F32: 경과기간 | G32: 개발실적
G33: 가중치 | H33: 배점 | I33: 자기평가 | J33: 확인
A34: 총 계 | C34: - | D34: - | E34: - | F34: - | G34: - | H34: 2 | I34: =ROUND(SUM(I35:I43),2) -> 1 | J34: =SUM(J35:J43) -> 0
A35: 건설신기술 | B35: 00신기술 | C35: 00청 | D35: 00-000-000 | E35: 2009-02-03 | F35: 1년9개월 | G35: 1 | H35: 1 | I35: =ROUND(G35*H35,2) -> 1 | J35: -
H36: 1 | I36: =ROUND(G36*H36,2) -> 0 | J36: -
H37: 1 | I37: 0 | J37: -
A38: 건설기술에 관한 특허 | H38: 0.6 | I38: 0 | J38: -
H39: 0.6 | I39: 0 | J39: -
H40: 0.6 | I40: 0 | J40: -
A41: 건설기술에 관한 실용신안 | H41: 0.3 | I41: 0 | J41: -
H42: 0.3 | I42: 0 | J42: -
H43: 0.3 | I43: 0 | J43: -
A46: 공동도급사 | B46: =참여업체현황!B9 -> C건축사 | D46: 환산지분율 | F46: =참여업체현황!$D$9 -> 0.175
A48: 구분 | B48: 제목 | C48: 등록청 | D48: 지정번호 | E48: 출원일 | F48: 경과기간 | G48: 개발실적
G49: 가중치 | H49: 배점 | I49: 자기평가 | J49: 확인
A50: 총 계 | C50: - | D50: - | E50: - | F50: - | G50: - | H50: 2 | I50: =ROUND(SUM(I51:I59),2) -> 1.48 | J50: =SUM(J51:J59) -> 0
A51: 건설신기술 | B51: 00신기술 | C51: 00청 | D51: 00-000-000 | E51: 2009-02-03 | F51: 1년9개월 | G51: 1 | H51: 1 | I51: =ROUND(G51*H51,2) -> 1 | J51: -
H52: 1 | I52: =ROUND(G52*H52,2) -> 0 | J52: -
H53: 1 | I53: 0 | J53: -
A54: 건설기술에 관한 특허 | C54: 00청 | D54: 00-000-000 | E54: 0000-00-00 | F54: 6년8개월 | G54: 0.8 | H54: 0.6 | I54: 0.48 | J54: -
H55: 0.6 | I55: 0 | J55: -
H56: 0.6 | I56: 0 | J56: -
A57: 건설기술에 관한 실용신안 | H57: 0.3 | I57: 0 | J57: -
H58: 0.3 | I58: 0 | J58: -
H59: 0.3 | I59: 0 | J59: -
A62: 4-2. 투자실적
A64: 투자실적 총계
A66: 구분 | B66: 업체명 | C66: 환산지분율 | D66: 1년차 | F66: 2년차 | H66: 3년차 | J66: 투자실적 | K66: 투자실적
D67: 건설기술개발투자액 | E67: 건설부문총매출액 | F67: 건설기술개발투자액 | G67: 건설부문총매출액 | H67: 건설기술개발투자액 | I67: 건설부문총매출액 | K67: 자기평가 | L67: 확인
A68: 총 계 | C68: - | D68: - | E68: - | F68: - | G68: - | H68: - | I68: - | J68: =ROUND(J69*C69+J70*C70+J71*C71,4) -> 0.0234 | L68: =SUM(L69:L71) -> 0
A69: 투자실적 | B69: =참여업체현황!B5 -> A건축사 | C69: =참여업체현황!D5 -> 0.5 | D69: 3.55 | E69: 100 | F69: 5 | G69: 200 | H69: 4 | I69: 100 | J69: =ROUND((ROUND(D69/E69,4)+ROUND(F69/G69,4)+ROUND(H69/I69,4))/3,4) -> 0.0335 | K69: - | L69: -
B70: =참여업체현황!B7 -> B건축사 | C70: =참여업체현황!D7 -> 0.325 | D70: 3 | E70: 100 | F70: 2 | G70: 250 | H70: 2 | I70: 530 | J70: =ROUND((ROUND(D70/E70,4)+ROUND(F70/G70,4)+ROUND(H70/I70,4))/3,4) -> 0.0139 | K70: - | L70: -
B71: =참여업체현황!B9 -> C건축사 | C71: =참여업체현황!D9 -> 0.175 | D71: 2 | E71: 120 | F71: 2 | G71: 130 | H71: 2 | I71: 400 | J71: =ROUND((ROUND(D71/E71,4)+ROUND(F71/G71,4)+ROUND(H71/I71,4))/3,4) -> 0.0124 | K71: - | L71: -

Sheet 4(2)활용실적
A2: 4-3. 활용실적
A4: 활용실적 총계
A6: 활용실적 | C6: 환산지분율 | D6: 실적점수
D7: 신기술 | E7: 특허 | F7: 실용신안 | G7: 자기평가 | H7: 확인
A8: 총 계 | C8: - | D8: =$C9*D9+$C10*D10+$C11*D11 -> 0.8 | E8: =$C9*E9+$C10*E10+$C11*E11 -> 0.48 | F8: =$C9*F9+$C10*F10+$C11*F11 -> 0.21 | G8: =ROUND($C9*G9+$C10*G10+$C11*G11,2) -> 1.49 | H8: =$C9*H9+$C10*H10+$C11*H11 -> 0
A9: =A14 -> 대 표 사 | B9: =B14 -> A건축사 | C9: =참여업체현황!$D$5 -> 0.5 | D9: =SUM(I19:I21) -> 0.8 | E9: =SUM(I22:I24) -> 0.48 | F9: =SUM(I25:I27) -> 0.21 | G9: =I18 -> 1.49
A10: =A30 -> 공동도급사 | B10: =B30 -> B건축사 | C10: =참여업체현황!$D$7 -> 0.325 | D10: =SUM(I35:I37) -> 0.8 | E10: =SUM(I38:I40) -> 0.48 | F10: =SUM(I41:I43) -> 0.21 | G10: =I34 -> 1.49
A11: =A46 -> 공동도급사 | B11: =B46 -> C건축사 | C11: =참여업체현황!$D$9 -> 0.175 | D11: =SUM(I51:I53) -> 0.8 | E11: =SUM(I54:I56) -> 0.48 | F11: =SUM(I57:I59) -> 0.21 | G11: =I50 -> 1.49
A14: 대 표 사 | B14: =참여업체현황!B5 -> A건축사 | D14: 환산지분율 | F14: =참여업체현황!D5 -> 0.5
A16: 구분 | B16: 권리내용 | C16: 권리권자 | D16: 등록일자 | E16: 경과기간 (입찰공고일기준) | F16: 활용건수 | G16: 활용금액 (억원) | H16: 개발실적
H17: 가중치 | I17: 자기평가 | J17: 확인
A18: 총 계 | C18: - | D18: - | E18: - | F18: - | G18: - | H18: - | I18: =ROUND(SUM(I19:I27),2) -> 1.49 | J18: =SUM(J19:J27) -> 0
A19: 건설신기술 | B19: 00신기술 | C19: 홍길동 | D19: 2009-02-03 | E19: =ROUNDUP((총괄표!$H$3-D19+1)/365,0) -> 2 | F19: 3 | G19: 15억 | H19: 0.8 | I19: =ROUND(H19*(1),2) -> 0.8 | J19: -
I20: =ROUND(H20*(1),2) -> 0 | J20: -
I21: =ROUND(H21*(1),2) -> 0 | J21: -
A22: 건설기술에 관한 특허 | B22: 00신기술 | C22: 홍길동 | D22: 2009-02-03 | E22: =ROUNDUP((총괄표!$H$3-D22+1)/365,0) -> 2 | F22: 3 | G22: 15억 | H22: 0.8 | I22: =ROUND(H22*(0.6),2) -> 0.48 | J22: -
I23: =ROUND(H23*(0.6),2) -> 0 | J23: -
I24: =ROUND(H24*(0.6),2) -> 0 | J24: -
A25: 건설기술에 관한 실용신안 | B25: 00신기술 | C25: 홍길동 | D25: 2009-02-03 | E25: =ROUNDUP((총괄표!$H$3-D25+1)/365,0) -> 2 | F25: 2 | G25: 13억 | H25: 0.7 | I25: =ROUND(H25*(0.3),2) -> 0.21 | J25: -
I26: =ROUND(H26*(0.3),2) -> 0 | J26: -
I27: =ROUND(H27*(0.3),2) -> 0 | J27: -
A30: 공동도급사 | B30: =참여업체현황!B7 -> B건축사 | D30: 환산지분율 | F30: =참여업체현황!D7 -> 0.325
A32: 구분 | B32: 권리내용 | C32: 권리권자 | D32: 등록일자 | E32: 경과기간 (입찰공고일기준) | F32: 활용건수 | G32: 활용금액 (억원) | H32: 개발실적
H33: 가중치 | I33: 자기평가 | J33: 확인
A34: 총 계 | C34: - | D34: - | E34: - | F34: - | G34: - | H34: - | I34: =ROUND(SUM(I35:I43),2) -> 1.49 | J34: =SUM(J35:J43) -> 0
A35: 건설신기술 | B35: 00신기술 | C35: 홍길동 | D35: 2009-02-03 | E35: =ROUNDUP((총괄표!$H$3-D35+1)/365,0) -> 2 | F35: 3 | G35: 15억 | H35: 0.8 | I35: =ROUND(H35*(1),2) -> 0.8 | J35: -
I36: =ROUND(H36*(1),2) -> 0 | J36: -
I37: =ROUND(H37*(1),2) -> 0 | J37: -
A38: 건설기술에 관한 특허 | B38: 00신기술 | C38: 홍길동 | D38: 2009-02-03 | E38: =ROUNDUP((총괄표!$H$3-D38+1)/365,0) -> 2 | F38: 3 | G38: 15억 | H38: 0.8 | I38: =ROUND(H38*(0.6),2) -> 0.48 | J38: -
I39: =ROUND(H39*(0.6),2) -> 0 | J39: -
I40: =ROUND(H40*(0.6),2) -> 0 | J40: -
A41: 건설기술에 관한 실용신안 | B41: 00신기술 | C41: 홍길동 | D41: 2009-02-03 | E41: =ROUNDUP((총괄표!$H$3-D41+1)/365,0) -> 2 | F41: 2 | G41: 13억 | H41: 0.7 | I41: =ROUND(H41*(0.3),2) -> 0.21 | J41: -
I42: =ROUND(H42*(0.3),2) -> 0 | J42: -
I43: =ROUND(H43*(0.3),2) -> 0 | J43: -
A46: 공동도급사 | B46: =참여업체현황!B9 -> C건축사 | D46: 환산지분율 | F46: =참여업체현황!D9 -> 0.175
A48: 구분 | B48: 권리내용 | C48: 권리권자 | D48: 등록일자 | E48: 경과기간 (입찰공고일기준) | F48: 활용건수 | G48: 활용금액 (억원) | H48: 개발실적
H49: 가중치 | I49: 자기평가 | J49: 확인
A50: 총 계 | C50: - | D50: - | E50: - | F50: - | G50: - | H50: - | I50: =ROUND(SUM(I51:I59),2) -> 1.49 | J50: =SUM(J51:J59) -> 0
A51: 건설신기술 | B51: 00신기술 | C51: 홍길동 | D51: 2009-02-03 | E51: =ROUNDUP((총괄표!$H$3-D51+1)/365,0) -> 2 | F51: 3 | G51: 15억 | H51: 0.8 | I51: =ROUND(H51*(1),2) -> 0.8 | J51: -
I52: =ROUND(H52*(1),2) -> 0 | J52: -
I53: =ROUND(H53*(1),2) -> 0 | J53: -
A54: 건설기술에 관한 특허 | B54: 00신기술 | C54: 홍길동 | D54: 2009-02-03 | E54: =ROUNDUP((총괄표!$H$3-D54+1)/365,0) -> 2 | F54: 3 | G54: 15억 | H54: 0.8 | I54: =ROUND(H54*(0.6),2) -> 0.48 | J54: -
I55: =ROUND(H55*(0.6),2) -> 0 | J55: -
I56: =ROUND(H56*(0.6),2) -> 0 | J56: -
A57: 건설기술에 관한 실용신안 | B57: 00신기술 | C57: 홍길동 | D57: 2009-02-03 | E57: =ROUNDUP((총괄표!$H$3-D57+1)/365,0) -> 2 | F57: 2 | G57: 13억 | H57: 0.7 | I57: =ROUND(H57*(0.3),2) -> 0.21 | J57: -
I58: =ROUND(H58*(0.3),2) -> 0 | J58: -
I59: =ROUND(H59*(0.3),2) -> 0 | J59: -

Sheet 4(3)R&D참여실적
A2: 4-4. R&D사업 참여실적
A4: R&D사업 참여실적 총계
A6: R&D사업 참여실적 | C6: 환산지분율 | D6: 주연구기관 | E6: 협동연구기관 | F6: 참여기업 | G6: 실적점수
G7: 배점 | H7: 자기평가 | I7: 확인
A8: 총 계 | C8: - | D8: =$C9*D9+$C10*D10+$C11*D11 -> 1.2 | E8: 0.6 | F8: 0.3 | G8: 1 | H8: =ROUND($C9*H9+$C10*H10+$C11*H11,2) -> 2.1 | I8: 0
A9: =A14 -> 대 표 사 | B9: =B14 -> A건축사 | C9: =참여업체현황!$D$5 -> 0.5 | D9: =SUM(H19:H21) -> 1.8 | E9: =SUM(H22:H24) -> 1.2 | F9: =SUM(H25:H27) -> 0.6 | G9: 1 | H9: =H18 -> 3.6 | I9: =I18 -> 0
A10: =A30 -> 공동도급사 | B10: =B30 -> B건축사 | C10: =참여업체현황!$D$7 -> 0.325 | D10: =SUM(H35:H37) -> 0.6 | E10: =SUM(H38:H40) -> 0 | F10: =SUM(H41:H43) -> 0 | G10: 1 | H10: =H34 -> 0.6 | I10: =I34 -> 0
A11: =A46 -> 공동도급사 | B11: =B30 -> B건축사 | C11: =참여업체현황!$D$9 -> 0.175 | D11: =SUM(H51:H53) -> 0.6 | E11: =SUM(H54:H56) -> 0 | F11: =SUM(H57:H59) -> 0 | G11: 1 | H11: =H50 -> 0.6 | I11: =I50 -> 0
A14: 대 표 사 | B14: =참여업체현황!B5 -> A건축사 | D14: 환산지분율 | F14: =참여업체현황!$D$5 -> 0.5
A16: 구분 | B16: 권리내용 | C16: 권리권자 | D16: 기준일 | E16: 경과기간(년) (입찰공고일기준) | F16: 참여점수 | G16: 참여금액 (억원) | H16: 참여실적
H17: 자기평가 | I17: 확인
A18: 총 계 | C18: - | D18: - | E18: - | F18: - | G18: - | H18: =SUM(H19:H27) -> 3.6 | I18: =SUM(I19:I27) -> 0
A19: 주연구기관참여 | B19: 00신기술 | C19: 홍길동 | D19: 2009-02-03 | E19: =ROUNDUP((총괄표!$H$3-D19+1)/365,0) -> 2 | F19: 0.6 | G19: 15억 | H19: =F19 -> 0.6
F20: 0.6 | H20: =F20 -> 0.6
F21: 0.6 | H21: 0.6
A22: 협동연구기관참여 | B22: 00신기술 | F22: 0.4 | H22: 0.4
F23: 0.4 | H23: 0.4
F24: 0.4 | H24: 0.4
A25: 참여기업으로참여 | B25: 00신기술 | F25: 0.2 | H25: 0.2
F26: 0.2 | H26: 0.2
F27: 0.2 | H27: 0.2
A30: 공동도급사 | B30: =참여업체현황!B7 -> B건축사 | D30: 환산지분율 | F30: =참여업체현황!$D$7 -> 0.325
A32: 구분 | B32: 권리내용 | C32: 권리권자 | D32: 기준일 | E32: 경과기간(년) (입찰공고일기준) | F32: 참여점수 | G32: 활용금액 (억원) | H32: 참여실적
H33: 자기평가 | I33: 확인
A34: 총 계 | C34: - | D34: - | E34: - | F34: - | G34: - | H34: =SUM(H35:H43) -> 0.6 | I34: =SUM(I35:I43) -> 0
A35: 주연구기관참여 | B35: 00신기술 | C35: 홍길동 | D35: 2009-02-03 | E35: =ROUNDUP((총괄표!$H$3-D35+1)/365,0) -> 2 | F35: 0.6 | G35: 15억 | H35: =F35 -> 0.6
H36: =F36 -> 0
H37: 0
A38: 협동연구기관참여 | B38: 00신기술 | H38: 0
H39: 0
H40: 0
A41: 참여기업으로참여 | B41: 00신기술 | H41: 0
H42: 0
H43: 0
A46: 공동도급사 | B46: =참여업체현황!B9 -> C건축사 | D46: 환산지분율 | F46: =참여업체현황!$D$9 -> 0.175
A48: 구분 | B48: 권리내용 | C48: 권리권자 | D48: 기준일 | E48: 경과기간(년) (입찰공고일기준) | F48: 참여점수 | G48: 활용금액 (억원) | H48: 참여실적
H49: 자기평가 | I49: 확인
A50: 총 계 | C50: - | D50: - | E50: - | F50: - | G50: - | H50: =SUM(H51:H59) -> 0.6 | I50: =SUM(I51:I59) -> 0
A51: 주연구기관참여 | B51: 00신기술 | C51: 홍길동 | D51: 2009-02-03 | E51: =ROUNDUP((총괄표!$H$3-D51+1)/365,0) -> 2 | F51: 0.6 | G51: 15억 | H51: =F51 -> 0.6
H52: =F52 -> 0
H53: 0
A54: 협동연구기관참여 | B54: 00신기술 | H54: 0
H55: 0
H56: 0
A57: 참여기업으로참여 | B57: 00신기술 | H57: 0
H58: 0
H59: 0

Sheet 5.업무중첩도
A2: 5. 업무중첩도
A4: 책임분야 | D4: 중첩기간 (개월) | E4: 배 점 | F4: 자기 평가 | G4: 확 인 | H4: 성 명 | I4: 용역명 | J4: 계약금액 | K4: 용역기간 중첩 | M4: 중첩기간(일) | N4: 발주청 | O4: 기타
K5: 입찰공고일(당해용역) | L5: 용역준공일
A6: 책 임 기 술 자 총 계 | D6: - | E6: =E7 -> 6 | F6: =F7 -> 6 | G6: =G7 -> 0 | H6: - | I6: - | J6: - | K6: - | L6: - | M6: - | N6: - | O6: -
A7: 사업책임기술자 | D7: =ROUNDDOWN(SUM(M7:M9)/30,0) -> 14 | E7: 6 | F7: 6 | H7: 000 | I7: 00설계 | J7: 00,000 | K7: 2009-03-05 | L7: 2010-05-20 | M7: =(L7-K7+1) -> 442
A11: 분야별책임기술자 총 계 | D11: - | E11: =E12*'1(1)참여기술자'!$C$45+E15*'1(1)참여기술자'!$D$45+E18*'1(1)참여기술자'!$E$45+E21*'1(1)참여기술자'!$F$45 -> 4 | F11: =ROUND(F12*'1(1)참여기술자'!$C$45+F15*'1(1)참여기술자'!$D$45+F18*'1(1)참여기술자'!$E$45+F21*'1(1)참여기술자'!$F$45,2) -> 0 | G11: =ROUND(G12*'1(1)참여기술자'!$C$45+G15*'1(1)참여기술자'!$D$45+G18*'1(1)참여기술자'!$E$45+G21*'1(1)참여기술자'!$F$45,2) -> 0 | H11: - | I11: - | J11: - | K11: - | M11: - | N11: - | O11: -
A12: 건축설계 | D12: =SUM(M12:M14)/30 -> 14.73333333 | E12: 4 | H12: 홍길동 | I12: 00설계 | J12: 00,000 | K12: 2009-03-05 | L12: 2010-05-20 | M12: =(L12-K12+1) -> 442 | N12: 00공사
A15: 토질 및 기초 | D15: =SUM(M15:M17)/30 -> 0 | E15: 4
A18: 전기 | D18: =SUM(M18:M20)/30 -> 0 | E18: 4
A21: 기계 | D21: =SUM(M21:M23)/30 -> 0 | E21: 4
